bitfinex/quotes_SOLUSD_20241010
["timestamp","ask_amount","ask_price","bid_price","bid_amount"]
[1728537666167,7.1606,139.66,139.62,17.9052]
[1728537672269,24.027864,139.69,139.63,7.1613]
[1728537672569,23.902374,139.66,139.63,7.1613]
[1728537672806,23.902374,139.66,139.62,25.0673]
[1728537673846,7.1603,139.66,139.62,25.0673]
[1728537674170,7.1599,139.67,139.62,25.0673]
[1728537675164,7.1599,139.67,139.63,7.1616]
[1728537675364,24.027864,139.69,139.63,7.1616]
[1728537675574,7.1598,139.67,139.63,7.1616]
[1728537676049,24.027864,139.69,139.62,17.9052]
[1728537676373,0.12549,139.67,139.6,22.1379]
[1728537676544,24.027864,139.67,139.6,22.1379]
[1728537676751,7.1616,139.64,139.6,22.1379]
[1728537677062,7.1609,139.65,139.6,29.3011]
[1728537677565,7.1613,139.64,139.6,22.1379]
[1728537677760,7.1618,139.63,139.6,22.1379]
[1728537678751,7.1613,139.64,139.6,22.1379]
[1728537681373,7.1611,139.65,139.6,29.301]
[1728537681777,23.902374,139.64,139.6,29.301]
[1728537683972,7.1611,139.65,139.6,29.301]
[1728537699881,7.1611,139.65,139.61,7.1627]
[1728537700067,31.188064,139.67,139.62,7.1622]
[1728537700276,0.12549,139.65,139.62,7.1622]
[1728537704383,7.1602,139.66,139.62,7.1622]
[1728537707892,30.936684,139.67,139.63,7.1616]
[1728537710896,7.1598,139.67,139.63,7.1616]
[1728537718690,0.12549,139.67,139.61,25.0692]
[1728537720511,7.1607,139.65,139.61,25.0692]
[1728537723207,7.1603,139.66,139.61,25.0692]
[1728537730103,24.027864,139.68,139.6,22.1379]
[1728537730413,7.1616,139.64,139.6,22.1379]
[1728537730598,7.1616,139.64,139.6,29.3011]
[1728537734718,7.1609,139.65,139.6,29.3011]
[1728537742615,7.1609,139.65,139.61,7.1628]
[1728537748334,7.1613,139.64,139.6,29.301]
[1728537751136,7.1607,139.65,139.61,7.1626]
[1728537753122,7.1603,139.66,139.62,7.1622]
[1728537775154,7.1603,139.66,139.6,40.0451]
[1728537775363,7.1603,139.66,139.61,7.1624]
[1728537776856,7.1598,139.67,139.63,7.1617]
[1728537780962,7.1598,139.67,139.6,40.0451]
[1728537781266,7.1598,139.67,139.62,7.1621]
[1728537782063,7.1598,139.67,139.63,7.1616]
[1728537786149,0.12549,139.7,139.63,1.43204325]
[1728537786347,7.1593,139.68,139.64,7.1612]
[1728537786659,7.1588,139.69,139.65,7.1605]
[1728537787648,7.1588,139.69,139.64,25.0638]
[1728537790172,7.1597,139.67,139.64,17.9027]
[1728537790370,7.1593,139.68,139.64,17.9027]
[1728537791286,7.1593,139.68,139.64,25.0638]
[1728537795875,7.1588,139.69,139.64,25.0638]
[1728537800687,7.1588,139.69,139.64,25.0638]
[1728537812861,24.027864,139.71,139.63,23.0053]
[1728537813060,7.1598,139.67,139.63,23.0053]
[1728537814587,7.1598,139.67,139.63,30.167]
[1728537824090,7.1593,139.68,139.63,30.167]
[1728537825884,7.1593,139.68,139.63,23.0053]
[1728537826077,24.027864,139.71,139.63,40.9092]
[1728537826286,7.1588,139.69,139.65,7.1606]
[1728537836398,7.1582,139.7,139.65,7.1606]
[1728537836575,23.902374,139.71,139.67,7.1592]
[1728537836774,31.060374,139.71,139.66,25.0603]
[1728537838401,7.1582,139.7,139.66,25.0603]
[1728537843106,7.1578,139.71,139.67,8.59133269]
[1728537843400,7.1573,139.72,139.67,30.0099]
[1728537843791,7.1568,139.73,139.68,7.1591]
[1728537844004,10.87714727,139.75,139.7,7.1581]
[1728537844191,7.156,139.75,139.71,1.43135187]
[1728537845201,7.156,139.75,139.71,30.0079]
[1728537845439,7.1552,139.76,139.72,1.43116746]
[1728537845577,7.1552,139.76,139.71,30.0079]
[1728537847280,7.1552,139.76,139.71,22.8503]
[1728537847582,7.1552,139.76,139.71,30.0078]
[1728537856229,7.1552,139.76,139.72,7.1571]
[1728537857031,7.1547,139.77,139.73,7.1565]
[1728537862524,7.1547,139.77,139.72,7.1571]
[1728537874042,7.1541,139.78,139.73,7.1565]
[1728537874453,7.1541,139.78,139.71,54.48585182]
[1728537874657,7.1541,139.78,139.74,7.156]
[1728537875223,0.12549,139.79,139.74,7.156]
[1728537875457,7.27899,139.79,139.75,1.43091422]
[1728537877644,12.76983008,139.82,139.73,17.8911]
[1728537877850,7.1531,139.8,139.76,7.155]
[1728537879233,7.1531,139.8,139.76,8.58576148]
[1728537879735,7.1531,139.8,139.76,7.155]
[1728537890571,7.1531,139.8,139.75,48.1287]
[1728537899462,7.1531,139.8,139.76,7.1549]
[1728537899780,30.929484,139.81,139.76,7.1549]
[1728537900369,7.1526,139.81,139.75,40.9733]
[1728537900675,7.1526,139.81,139.77,7.1545]
[1728537907771,0.25098,139.84,139.77,7.1545]
[1728537907985,7.152,139.82,139.78,7.1539]
[1728537908180,24.027864,139.84,139.79,8.58401788]
[1728537908181,23.902374,139.84,139.79,8.58401788]
[1728537908477,7.1515,139.84,139.79,7.1535]
[1728537908858,7.1515,139.84,139.79,29.4174]
[1728537910473,7.1515,139.84,139.79,22.2639]
[1728537910780,7.1506,139.85,139.8,7.1529]
[1728537912177,7.1511,139.84,139.79,40.147]
[1728537912482,7.1517,139.83,139.79,47.3005]
[1728537913191,7.1517,139.83,139.79,40.147]
[1728537918513,7.1517,139.83,139.79,47.3004]
[1728537927198,44.6414906,139.87,139.79,47.3004]
[1728537927393,29.05788608,139.88,139.79,47.3004]
[1728537927394,7.1511,139.84,139.79,47.3004]
[1728537928107,7.1511,139.84,139.8,7.153]
[1728537942390,23.902374,139.86,139.8,7.153]
[1728537942618,7.1506,139.85,139.81,7.1524]
[1728537944910,7.1506,139.85,139.79,40.147]
[1728537945211,7.1506,139.85,139.8,7.1529]
[1728537974350,7.151,139.84,139.8,7.1529]
[1728537976759,0.12549,139.85,139.79,22.2639]
[1728537976928,0.12549,139.84,139.77,7.1545]
[1728537978434,7.1525,139.81,139.77,7.1545]
[1728537980425,7.1525,139.81,139.76,25.0422]
[1728537981444,7.1525,139.81,139.77,7.1546]
[1728537981647,7.1525,139.81,139.76,25.0422]
[1728537984155,23.776884,139.81,139.77,7.1544]
[1728537999864,7.1521,139.82,139.78,7.1539]
[1728538000548,0.25098,139.85,139.78,7.1539]
[1728538000749,23.902374,139.82,139.78,7.1539]
[1728538001264,23.776884,139.82,139.78,7.1539]
[1728538001747,7.1515,139.83,139.78,7.1539]
[1728538001955,7.1511,139.84,139.79,7.1535]
[1728538002159,23.776884,139.83,139.79,7.1535]
[1728538002356,7.1505,139.85,139.81,7.1524]
[1728538002667,7.1505,139.85,139.8,25.0348]
[1728538002668,7.1506,139.85,139.8,25.0348]
[1728538006170,23.902374,139.85,139.82,7.152]
[1728538006350,23.902374,139.85,139.81,7.1525]
[1728538006746,23.776884,139.85,139.81,7.1525]
[1728538010592,30.927384,139.85,139.81,7.1525]
[1728538011356,7.1505,139.85,139.81,8.58275492]
[1728538013073,7.1505,139.85,139.81,7.1525]
[1728538013778,7.1503,139.86,139.81,7.1525]
[1728538014073,7.1503,139.86,139.82,7.1518]
[1728538015483,7.1495,139.87,139.82,7.1518]
[1728538016153,7.1492,139.88,139.84,7.1509]
[1728538016367,7.1492,139.88,139.83,7.1513]
[1728538017757,7.1495,139.87,139.82,25.0315]
[1728538018273,23.902374,139.88,139.82,25.0315]
[1728538018274,7.1501,139.86,139.82,25.0315]
[1728538018479,7.1505,139.85,139.81,7.1524]
[1728538023773,7.1505,139.85,139.8,22.8861]
[1728538023976,0.12549,139.87,139.8,22.8861]
[1728538024187,7.151,139.84,139.8,22.8861]
[1728538024355,7.1505,139.85,139.8,30.0387]
[1728538024558,7.1501,139.86,139.81,7.1524]
[1728538025667,17.99829,139.88,139.8,22.8861]
[1728538025873,7.1506,139.85,139.8,30.039]
[1728538026073,7.1506,139.85,139.81,7.1524]
[1728538036558,7.1516,139.83,139.8,22.8861]
[1728538036759,17.99829,139.88,139.8,22.8861]
[1728538036760,7.1521,139.82,139.8,22.8861]
[1728538038959,23.902374,139.86,139.8,22.8861]
[1728538039260,7.1517,139.83,139.8,22.8861]
[1728538055380,7.1297,139.83,139.8,22.8861]
[1728538069995,7.1511,139.84,139.8,22.8861]
[1728538070301,7.1511,139.84,139.81,1.43032755]
[1728538070912,23.902374,139.86,139.81,1.43030459]
[1728538071218,30.926984,139.86,139.81,8.58240459]
[1728538071383,7.1506,139.85,139.81,7.1521]
[1728538082113,7.1506,139.85,139.8,47.9205]
[1728538101722,7.1511,139.84,139.8,47.9205]
[1728538109851,0.12549,139.86,139.8,40.7676]
[1728538110654,7.1514,139.84,139.8,40.7676]
[1728538112761,7.1514,139.84,139.8,47.9205]
[1728538116166,7.1505,139.85,139.8,47.9205]
[1728538116370,3.84663727,139.88,139.81,1.43024289]
[1728538116571,3.84663727,139.88,139.82,7.1516]
[1728538116572,7.1496,139.87,139.82,7.1516]
[1728538116865,7.1496,139.87,139.83,1.43014616]
[1728538117965,7.1491,139.88,139.83,19.30884616]
[1728538118142,7.1491,139.88,139.84,1.42994291]
[1728538118551,7.1491,139.88,139.83,17.8787]
[1728538119373,7.1491,139.88,139.84,7.1509]
[1728538122058,7.1491,139.88,139.83,25.0301]
[1728538128167,7.1491,139.88,139.83,17.8787]
[1728538129273,7.1491,139.88,139.83,25.0301]
[1728538137773,24.027864,139.9,139.81,20.0]
[1728538137962,7.1504,139.86,139.81,27.1524]
[1728538143279,7.1504,139.86,139.82,7.1518]
[1728538145275,7.1496,139.87,139.82,7.1518]
[1728538161894,7.1496,139.87,139.83,7.1514]
[1728538186014,7.149,139.88,139.82,17.8796]
[1728538186186,7.149,139.88,139.84,7.1509]
[1728538191207,7.149,139.88,139.84,29.3729]
[1728538192414,7.148,139.9,139.85,7.1501]
[1728538194313,6.58110255,139.9,139.85,7.1501]
[1728538200121,6.58110255,139.9,139.84,40.099]
[1728538200303,23.902374,139.92,139.86,7.1498]
[1728538200508,7.1476,139.91,139.86,7.1498]
[1728538201700,23.902374,139.92,139.84,47.2496]
[1728538202001,7.1489,139.88,139.84,47.2496]
[1728538202201,7.1489,139.88,139.84,40.099]
[1728538203019,7.1489,139.88,139.84,47.2498]
[1728538203194,7.1485,139.89,139.84,47.2498]
[1728538207606,23.902374,139.92,139.84,47.2498]
[1728538207805,7.149,139.88,139.84,40.099]
[1728538208426,7.149,139.88,139.84,47.2498]
[1728538208822,7.1486,139.89,139.84,47.2498]
[1728538217025,23.902374,139.92,139.85,7.1503]
[1728538217231,7.1476,139.91,139.86,7.1495]
[1728538227541,0.12549,139.92,139.86,7.1495]
[1728538227724,0.12549,139.92,139.84,40.099]
[1728538229446,7.1489,139.89,139.84,47.2498]
[1728538232643,7.1489,139.89,139.84,40.099]
[1728538232828,7.1489,139.89,139.85,7.1504]
[1728538233419,7.1481,139.9,139.85,7.1504]
[1728538234539,7.1481,139.9,139.86,1.42977183]
[1728538234743,7.1481,139.9,139.85,8.58016049]
[1728538235152,7.1481,139.9,139.85,7.1504]
[1728538235828,7.1481,139.9,139.86,7.1499]
[1728538246857,23.776884,139.93,139.86,7.1499]
[1728538247057,7.1476,139.91,139.87,7.1494]
[1728538262286,7.1469,139.92,139.87,7.1494]
[1728538265269,7.1474,139.91,139.87,7.1494]
[1728538266576,7.148,139.9,139.86,25.0244]
[1728538266756,23.776884,139.93,139.85,20.0]
[1728538266757,7.1488,139.89,139.85,20.0]
[1728538266957,7.1493,139.88,139.84,22.222]
[1728538267276,7.1496,139.87,139.84,22.222]
[1728538269080,7.15,139.86,139.82,7.1519]
[1728538272493,7.1516,139.83,139.81,21.8452]
[1728538272788,7.1511,139.84,139.81,21.8452]
[1728538278967,7.1511,139.84,139.79,7.1533]
[1728538281385,17.8731,139.88,139.77,40.3081]
[1728538281386,23.776884,139.83,139.78,7.154]
[1728538281690,7.1527,139.81,139.77,47.4626]
[1728538289880,0.12549,139.82,139.77,22.4223]
[1728538290206,23.776884,139.83,139.77,22.4223]
[1728538290207,7.1534,139.8,139.77,22.4223]
[1728538291582,7.154,139.79,139.77,23.85297394]
[1728538292489,7.154,139.79,139.77,22.4223]
[1728538293478,7.154,139.78,139.77,22.4223]
[1728538294487,7.1536,139.79,139.77,22.4223]
[1728538295206,23.776884,139.83,139.77,22.4223]
[1728538295503,7.1531,139.8,139.78,1.43070501]
[1728538296378,7.1529,139.81,139.78,1.43070501]
[1728538296695,7.1529,139.81,139.77,22.4223]
[1728538297701,7.1529,139.81,139.78,1.43052762]
[1728538299083,7.1529,139.81,139.77,22.4223]
[1728538299290,7.1529,139.81,139.77,29.5768]
[1728538299688,23.776884,139.83,139.77,22.4223]
[1728538300000,7.1536,139.79,139.77,22.4223]
[1728538302896,23.776884,139.81,139.73,22.845]
[1728538303197,7.1551,139.76,139.73,22.845]
[1728538305113,7.1547,139.77,139.73,22.845]
[1728538305285,7.1547,139.77,139.74,1.43097989]
[1728538311005,7.1541,139.78,139.75,1.43102059]
[1728538311194,7.1536,139.79,139.75,8.58642059]
[1728538311886,7.1531,139.8,139.76,1.43071803]
[1728538313610,7.1531,139.8,139.77,1.43069359]
[1728538314701,7.1526,139.81,139.77,1.43069359]
[1728538316589,7.1526,139.81,139.76,7.155]
[1728538317094,23.902374,139.84,139.76,7.155]
[1728538317292,7.1537,139.79,139.75,17.8885]
[1728538317491,7.1542,139.78,139.74,20.12549]
[1728538317908,7.1542,139.78,139.74,27.28159]
[1728538318298,7.1537,139.79,139.74,27.28159]
[1728538319813,7.1537,139.79,139.74,20.0]
[1728538322416,7.1537,139.79,139.75,1.43074839]
[1728538322894,7.1537,139.79,139.74,27.156]
[1728538324922,7.1526,139.81,139.76,7.155]
[1728538325142,7.1526,139.81,139.77,1.43047875]
[1728538325301,7.1526,139.81,139.76,7.155]
[1728538327131,7.1526,139.81,139.75,7.28099]
[1728538328694,7.1532,139.8,139.75,7.28099]
[1728538329394,7.1532,139.8,139.74,20.0]
[1728538329593,7.1532,139.8,139.74,27.1559]
[1728538337428,7.1536,139.79,139.74,27.1559]
[1728538341722,0.12549,139.83,139.74,27.1559]
[1728538341928,7.1531,139.8,139.74,28.58660909]
[1728538342821,7.1531,139.8,139.74,21.43070909]
[1728538343129,7.1526,139.81,139.75,7.1552]
[1728538343314,7.1526,139.81,139.76,7.155]
[1728538344213,7.1526,139.81,139.77,1.43053537]
[1728538347420,23.776884,139.83,139.77,1.43053537]
[1728538347628,7.1521,139.82,139.77,7.1545]
[1728538349024,7.1526,139.81,139.76,7.155]
[1728538349215,7.1526,139.81,139.75,25.16919]
[1728538354324,7.1534,139.8,139.75,17.8883]
[1728538354506,17.8782,139.84,139.75,17.8883]
[1728538354507,7.1536,139.79,139.75,17.8883]
[1728538361242,23.902374,139.83,139.74,20.0]
[1728538361243,7.1546,139.77,139.74,20.0]
[1728538361412,7.1552,139.76,139.73,22.845]
[1728538361613,23.902374,139.81,139.73,22.845]
[1728538361614,7.1556,139.75,139.73,22.845]
[1728538362719,17.8859,139.78,139.71,1.07389081]
[1728538362926,7.1557,139.75,139.71,1.07389081]
[1728538363946,7.1557,139.75,139.71,21.07389081]
[1728538364143,17.8859,139.78,139.71,1.07389081]
[1728538364319,7.1563,139.74,139.71,1.07389081]
[1728538364641,7.1563,139.74,139.7,22.7876]
[1728538364843,7.157,139.73,139.7,22.7876]
[1728538366039,23.776884,139.77,139.7,22.7876]
[1728538366241,7.1557,139.75,139.7,22.7876]
[1728538366832,7.1552,139.76,139.7,22.7876]
[1728538367125,23.776884,139.77,139.72,7.1571]
[1728538367126,7.1546,139.77,139.72,7.1571]
[1728538367325,7.1546,139.77,139.71,7.1575]
[1728538367533,7.1553,139.76,139.71,7.1575]
[1728538373230,7.1553,139.76,139.72,1.43108905]
[1728538375636,7.1553,139.76,139.71,7.1575]
[1728538376949,7.1553,139.76,139.71,8.58856017]
[1728538379941,31.23703156,139.8,139.72,19.3232455]
[1728538380247,7.62690314,139.82,139.73,7.1565]
[1728538380548,7.1547,139.77,139.72,25.0492]
[1728538383558,7.1547,139.77,139.73,7.1565]
[1728538386952,7.154,139.79,139.73,7.1565]
[1728538387250,7.154,139.79,139.74,31.17678843]
[1728538388224,7.1542,139.78,139.74,29.746]
[1728538391555,7.1536,139.79,139.75,7.1556]
[1728538391936,7.1536,139.79,139.74,29.7458]
[1728538398964,7.1536,139.79,139.75,7.1556]
[1728538406164,7.1546,139.77,139.74,22.5899]
[1728538406747,7.1542,139.78,139.74,22.5899]
[1728538421979,7.1542,139.78,139.74,29.7459]
[1728538425855,17.8806,139.82,139.74,29.7459]
[1728538426051,7.1534,139.8,139.75,7.1554]
[1728538426267,7.1534,139.8,139.76,1.43064519]
[1728538426452,7.1534,139.8,139.76,8.58574519]
[1728538431286,7.1534,139.8,139.76,7.1551]
[1728538432980,7.1534,139.8,139.74,22.5899]
[1728538433170,7.1534,139.8,139.75,7.1555]
[1728538436759,7.1552,139.76,139.74,22.5899]
[1728538436960,23.776884,139.81,139.71,22.3341]
[1728538436961,7.1562,139.74,139.71,22.3341]
[1728538438377,7.1557,139.75,139.71,22.3341]
[1728538443891,7.1552,139.76,139.72,7.1569]
[1728538448898,7.47642573,139.8,139.75,7.1555]
[1728538449092,7.1534,139.8,139.75,7.1554]
[1728538449878,7.1534,139.8,139.75,20.0]
[1728538450080,7.1534,139.8,139.76,7.155]
[1728538451802,7.1527,139.81,139.76,7.155]
[1728538453505,7.1527,139.81,139.77,8.58515235]
[1728538453680,7.1521,139.82,139.77,8.58515235]
[1728538454002,7.1521,139.82,139.77,7.1545]
[1728538454210,7.1525,139.81,139.77,7.1545]
[1728538463285,7.1521,139.82,139.77,7.1545]
[1728538484315,24.027864,139.86,139.76,39.5329]
[1728538484508,24.027864,139.86,139.78,7.1536]
[1728538484709,7.1522,139.82,139.78,7.1536]
[1728538485521,7.1516,139.83,139.79,7.1534]
[1728538486020,7.1516,139.83,139.79,8.58380595]
[1728538486204,7.1516,139.83,139.8,1.43037018]
[1728538487505,7.1516,139.83,139.79,7.1534]
[1728538492709,23.776884,139.86,139.78,17.8847]
[1728538492920,17.8744,139.87,139.8,7.153]
[1728538493107,17.8744,139.87,139.8,28.8171]
[1728538493505,7.1509,139.85,139.8,28.8171]
[1728538495629,7.1509,139.85,139.8,21.6641]
[1728538495837,7.1509,139.85,139.8,39.5462]
[1728538496010,7.1509,139.85,139.8,46.6991]
[1728538502033,7.1522,139.82,139.79,20.0]
[1728538506026,7.1516,139.83,139.79,20.0]
[1728538506836,7.1511,139.84,139.79,7.1532]
[1728538507011,7.1511,139.84,139.8,8.58344124]
[1728538507823,7.1503,139.86,139.81,7.1524]
[1728538508337,7.1496,139.87,139.82,7.152]
[1728538509035,7.1496,139.87,139.83,1.43007635]
[1728538510931,7.1496,139.87,139.84,1.43008074]
[1728538511451,7.1496,139.87,139.83,7.1515]
[1728538535343,17.8694,139.91,139.83,7.1515]
[1728538535550,7.149,139.88,139.83,7.1515]
[1728538538975,7.149,139.88,139.82,20.0]
[1728538539176,7.149,139.88,139.84,7.151]
[1728538540264,7.1486,139.89,139.85,8.58019015]
[1728538541958,7.1486,139.89,139.86,1.42976413]
[1728538542154,7.1486,139.89,139.85,7.1503]
[1728538542566,7.1486,139.89,139.86,1.42977851]
[1728538544755,23.902374,139.93,139.85,21.4788]
[1728538544972,7.1484,139.9,139.86,7.1499]
[1728538545180,25.31737954,139.94,139.87,8.57903405]
[1728538545361,7.1464,139.93,139.87,19.30273405]
[1728538545560,7.146,139.94,139.88,20.0]
[1728538545760,7.146,139.94,139.89,1.42935032]
[1728538546371,16.49855255,139.98,139.89,1.42935032]
[1728538546372,12.77740528,139.98,139.91,7.1471]
[1728538546575,7.1455,139.95,139.91,1.42930273]
[1728538547670,7.1459,139.94,139.91,1.42930273]
[1728538551166,7.1455,139.95,139.91,1.42930273]
[1728538552484,25.31531757,139.99,139.91,1.42930273]
[1728538552485,25.31531757,139.99,139.92,7.1468]
[1728538552777,82.76180911,140.04,139.93,7.1463]
[1728538552778,7.1445,139.97,139.93,7.1463]
[1728538557867,25.32288132,140.02,139.92,20.0]
[1728538558072,7.1455,139.95,139.92,20.0]
[1728538559983,7.1459,139.94,139.92,20.0]
[1728538561784,7.1455,139.95,139.92,20.0]
[1728538563268,7.1449,139.96,139.92,27.1469]
[1728538567173,24.027864,139.99,139.93,1.42911801]
[1728538567388,7.1444,139.97,139.93,1.42911801]
[1728538568515,7.1444,139.97,139.93,8.57541801]
[1728538570911,7.1444,139.97,139.93,7.1463]
[1728538571994,7.1449,139.96,139.92,27.1468]
[1728538572179,7.1449,139.96,139.92,20.0]
[1728538575603,7.1449,139.96,139.92,27.1469]
[1728538578205,23.776884,139.99,139.9,7.1477]
[1728538578383,0.25098,139.98,139.91,20.0]
[1728538578901,0.25098,139.98,139.9,7.1477]
[1728538579495,7.146,139.94,139.9,7.1477]
[1728538581313,7.1455,139.95,139.9,7.1477]
[1728538581495,7.1455,139.95,139.89,22.5152]
[1728538581804,7.1455,139.95,139.91,7.1473]
[1728538590386,0.12549,139.98,139.9,17.8694]
[1728538590387,7.1463,139.94,139.9,17.8694]
[1728538591724,23.902374,139.97,139.89,22.5152]
[1728538592015,7.147,139.92,139.89,22.5152]
[1728538597502,7.1465,139.93,139.89,22.5152]
[1728538597819,7.1465,139.93,139.9,1.42941446]
[1728538598825,7.1465,139.93,139.89,22.5152]
[1728538600627,7.1465,139.93,139.9,1.42942524]
[1728538601132,7.1465,139.93,139.89,22.5152]
[1728538602834,7.146,139.94,139.9,8.57721284]
[1728538604731,7.146,139.94,139.9,7.1478]
[1728538610036,7.1457,139.95,139.9,27.1476]
[1728538612836,3.84663727,139.98,139.89,22.5152]
[1728538612837,41.638884,139.97,139.89,22.5152]
[1728538613037,7.1465,139.93,139.89,22.5152]
[1728538613213,7.1465,139.93,139.89,29.6636]
[1728538615927,7.1465,139.93,139.89,22.5152]
[1728538618411,7.1465,139.93,139.89,29.6636]
[1728538620817,41.638884,139.97,139.89,29.6636]
[1728538621138,7.146,139.94,139.89,29.6636]
[1728538621320,7.146,139.94,139.9,7.1479]
[1728538626944,23.776884,139.97,139.92,7.1469]
[1728538627242,7.1449,139.96,139.92,7.1469]
[1728538627945,7.1449,139.96,139.91,7.1473]
[1728538628145,7.1449,139.96,139.92,1.42913089]
[1728538629552,7.1449,139.96,139.91,7.1473]
[1728538632627,7.1455,139.95,139.91,7.1473]
[1728538635031,7.1448,139.97,139.92,8.57597297]
[1728538635231,23.902374,139.98,139.91,7.1474]
[1728538635232,7.1453,139.96,139.91,7.1474]
[1728538635431,23.902374,139.98,139.92,1.42917194]
[1728538635648,7.1454,139.95,139.92,1.42917194]
[1728538636457,7.1454,139.95,139.91,7.1474]
[1728538637647,7.145,139.96,139.91,7.1474]
[1728538639934,7.1463,139.94,139.9,17.8692]
[1728538642358,7.1463,139.94,139.9,25.017]
[1728538650462,7.1455,139.95,139.9,25.017]
[1728538652456,41.637184,139.98,139.91,7.1473]
[1728538652670,7.145,139.96,139.91,7.1473]
[1728538653858,7.145,139.96,139.92,1.42907939]
[1728538654958,7.145,139.96,139.92,7.1468]
[1728538668851,7.1445,139.97,139.92,7.1468]
[1728538669183,7.1444,139.97,139.93,7.146]
[1728538679162,7.1444,139.97,139.92,25.0129]
[1728538687193,29.02963299,140.01,139.93,22.2136]
[1728538687367,7.1434,139.99,139.95,7.1453]
[1728538687697,7.1434,139.99,139.94,27.1458]
[1728538693485,7.1434,139.99,139.95,1.42877629]
[1728538694088,7.1434,139.99,139.94,27.1458]
[1728538694287,7.1434,139.99,139.95,1.42877648]
[1728538696789,7.1434,139.99,139.94,27.1458]
[1728538705723,7.1443,139.98,139.94,20.0]
[1728538706200,7.1445,139.97,139.94,20.0]
[1728538708528,23.902374,140.0,139.93,22.2136]
[1728538708829,0.12549,139.99,139.91,7.1473]
[1728538709511,7.1455,139.95,139.91,7.1473]
[1728538710030,7.145,139.96,139.91,7.1473]
[1728538711313,0.12549,139.99,139.91,7.1473]
[1728538711512,7.1454,139.95,139.91,7.1473]
[1728538736717,7.1454,139.95,139.89,40.8877]
[1728538736922,7.1454,139.95,139.9,27.1478]
[1728538737123,23.902374,139.98,139.9,27.1478]
[1728538737321,7.1461,139.94,139.9,27.1478]
[1728538740250,7.1454,139.95,139.9,27.1478]
[1728538740659,7.145,139.96,139.91,16.5633035]
[1728538742422,7.1445,139.97,139.91,34.4312035]
[1728538742626,7.36453888,140.0,139.93,29.7649]
[1728538742832,17.8552,140.02,139.94,1.42895786]
[1728538743029,25.21824361,140.02,139.94,1.42895786]
[1728538743464,7.1432,140.0,139.95,7.145]
[1728538744754,7.1433,139.99,139.95,7.145]
[1728538750041,7.1429,140.0,139.94,20.0]
[1728538750352,7.1429,140.0,139.95,7.1453]
[1728538752152,7.1429,140.0,139.96,1.42877168]
[1728538752550,7.1429,140.0,139.95,7.1453]
[1728538753158,7.1436,139.99,139.94,27.1458]
[1728538753866,7.1436,139.99,139.94,20.0]
[1728538754059,7.1436,139.99,139.95,7.1453]
[1728538755562,27.63297863,140.03,139.95,7.1453]
[1728538755776,7.1429,140.0,139.95,7.1453]
[1728538759042,0.12549,140.02,139.94,20.0]
[1728538759266,7.1442,139.98,139.94,20.0]
[1728538761370,0.12549,140.02,139.94,27.1457]
[1728538761545,7.1435,139.99,139.94,27.1457]
[1728538763065,7.143,140.0,139.95,7.145]
[1728538763477,7.143,140.0,139.96,1.42870575]
[1728538763773,7.143,140.0,139.95,7.145]
[1728538764071,7.143,140.0,139.96,1.42871425]
[1728538764448,7.143,140.0,139.94,21.07204502]
[1728538764750,7.143,140.0,139.96,7.1448]
[1728538775888,7.143,140.0,139.95,7.1452]
[1728538781597,7.143,140.0,139.96,8.57342349]
[1728538783798,7.143,140.0,139.96,7.1447]
[1728538784297,7.143,140.0,139.96,8.573386]